fUSD/lending_fUSD_20250123
["ID","MTS","AMOUNT","RATE_DAILY","PERIOD"]
[350064345,1737597053929,-500.0,0.00019726,2]
[350064346,1737597053939,-500.0,0.00019726,2]
[350064347,1737597053948,-665.46,0.00019726,2]
[350064348,1737597053958,-504.05460402,0.00019726,2]
[350064349,1737597053968,-500.0,0.00019726,2]
[350064350,1737597053978,-299.08970694,0.00019726,2]
[350064351,1737597053990,-508.52014718,0.00019726,2]
[350064352,1737597054000,-500.0,0.00019726,2]
[350064353,1737597054010,-649.60785071,0.00019726,2]
[350064354,1737597054020,-1033.15,0.00019726,2]
[350064355,1737597054030,-500.0,0.00019726,2]
[350064356,1737597054042,-500.0,0.00019726,2]
[350064357,1737597054051,-500.0,0.00019726,2]
[350064358,1737597054063,-547.85,0.00019726,2]
[350064359,1737597054075,-432.06559234,0.00019726,2]
[350064360,1737597054085,-500.0,0.00019726,2]
[350064361,1737597054097,-500.0,0.00019726,2]
[350064362,1737597054108,-511.85901273,0.00019726,2]
[350064363,1737597054120,-1043.11,0.00019726,2]
[350064364,1737597054131,-500.0,0.00019726,2]
[350064365,1737597054142,-500.0,0.00019726,2]
[350064366,1737597054156,-519.07561583,0.00019726,2]
[350064367,1737597054167,-500.0,0.00019726,2]
[350064368,1737597054176,-470.8193564,0.00019726,2]
[350064369,1737597054188,-500.0,0.00019726,2]
[350064370,1737597054201,-500.0,0.00019726,2]
[350064371,1737597054211,-556.01,0.00019726,2]
[350064372,1737597054220,-500.0,0.00019726,2]
[350064373,1737597054233,-991.21,0.00019726,2]
[350064374,1737597054243,-586.46,0.00019726,2]
[350064375,1737597054394,-1995.0,0.00019726,2]
[350064376,1737597054404,-2266.43,0.00019726,2]
[350064377,1737597054413,-500.0,0.00019726,2]
[350064378,1737597054423,-518.3387213,0.00019726,2]
[350064379,1737597054432,-500.0,0.00019726,2]
[350064380,1737597054443,-500.0,0.00019726,2]
[350064381,1737597054452,-500.0,0.00019726,2]
[350064382,1737597054463,-500.0,0.00019726,2]
[350064383,1737597054472,-500.0,0.00019726,2]
[350064384,1737597054482,-564.67,0.00019726,2]
[350064385,1737597054493,-500.0,0.00019726,2]
[350064386,1737597054502,-1676.87,0.00019726,2]
[350064387,1737597054512,-500.0,0.00019726,2]
[350064388,1737597054523,-513.0745138,0.00019726,2]
[350064389,1737597054533,-3898.98,0.00019726,2]
[350064390,1737597054543,-500.0,0.00019726,2]
[350064391,1737597054552,-500.0,0.00019726,2]
[350064392,1737597054562,-661.08,0.00019726,2]
[350064393,1737597054571,-500.0,0.00019726,2]
[350064394,1737597054580,-255.40596412,0.00019726,2]
[350064395,1737597054590,-500.0,0.00019726,2]
[350064396,1737597054599,-500.0,0.00019726,2]
[350064397,1737597054608,-500.0,0.00019726,2]
[350064398,1737597054618,-500.0,0.00019726,2]
[350064399,1737597054627,-503.82426891,0.00019726,2]
[350064400,1737597054636,-500.0,0.00019726,2]
[350064401,1737597054645,-836.81,0.00019726,2]
[350064402,1737597054655,-500.0,0.00019726,2]
[350064403,1737597054664,-821.27,0.00019726,2]
[350064404,1737597054674,-500.0,0.00019726,2]
[350064405,1737597054685,-500.0,0.00019726,2]
[350064406,1737597054694,-1502.53,0.00019726,2]
[350064407,1737597054704,-474.06,0.00019726,2]
[350064408,1737597054713,-500.0,0.00019726,2]
[350064409,1737597054723,-2639.74140238,0.00019732,2]
[350064410,1737597054734,-500.88960218,0.00019773,2]
[350064411,1737597054744,-515.0441,0.00019796,2]
[350064412,1737597054754,-500.0,0.00019822,2]
[350064413,1737597054763,-500.0,0.00019823,2]
[350064414,1737597054772,-500.0,0.00019823,2]
[350064415,1737597054783,-509.00071587,0.00019823,2]
[350064416,1737597054792,-500.0,0.00019823,2]
[350064417,1737597054801,-502.11729716,0.00019823,2]
[350064418,1737597054810,-346.51989097,0.00019823,2]
[350064419,1737597054819,-410.40876289,0.00019823,2]
[350064420,1737597054829,-398.78380301,0.00019823,2]
[350064421,1737597054837,-503.1560532,0.00019823,2]
[350064422,1737597054846,-507.15154089,0.00019823,2]
[350064423,1737597054856,-184.27243825,0.00019823,2]
[350064424,1737597054865,-501.79703619,0.00019823,2]
[350064425,1737597054875,-505.61179757,0.00019823,2]
[350064426,1737597054884,-511.79901252,0.00019823,2]
[350064427,1737597054893,-253.77925363,0.00019823,2]
[350064428,1737597054904,-501.86296188,0.00019823,2]
[350064429,1737597054914,-511.07318589,0.00019823,2]
[350064430,1737597054923,-509.60363267,0.00019823,2]
[350064431,1737597054932,-500.39067673,0.00019823,2]
[350064432,1737597054943,-500.0,0.00019823,2]
[350064433,1737597054952,-501.95318657,0.00019823,2]
[350064434,1737597054962,-352.06235706,0.00019831,2]
[350064435,1737597054972,-151.18492202,0.00019904,2]
[350064436,1737597054985,-486.0,0.00019933,2]
[350064437,1737597054995,-21567.18542332,0.00019952,2]
[350064438,1737597055004,-2615.33893808,0.00019952,2]
[350064439,1737597055014,-150.0,0.00019973,2]
[350064440,1737597055024,-500.0,0.00019999,2]
[350064441,1737597055034,-500.0,0.00019999,2]
[350064442,1737597055043,-251.256397,0.0002,2]
[350064443,1737597055053,-336.867004,0.0002,2]
[350064444,1737597055063,-517.23695552,0.0002,2]
[350064445,1737597055072,-500.0,0.0002,2]
[350064446,1737597055082,-500.0,0.0002,2]
[350064447,1737597055091,-500.0,0.0002,2]
[350064448,1737597055100,-511.17765152,0.0002,2]
[350064449,1737597055110,-500.0,0.0002,2]
[350064450,1737597055120,-500.0,0.0002,2]
[350064451,1737597055131,-500.0,0.0002,2]
[350064452,1737597055140,-565.2,0.0002,2]
[350064453,1737597055151,-500.0,0.0002,2]
[350064454,1737597055162,-500.0,0.0002,2]
[350064455,1737597055171,-500.0,0.0002,2]
[350064456,1737597055181,-500.0,0.0002,2]
[350064457,1737597055191,-500.0,0.0002,2]
[350064458,1737597055200,-513.1748677,0.0002,2]
[350064459,1737597055210,-500.0,0.0002,2]
[350064460,1737597055219,-500.0,0.0002,2]
[350064461,1737597055229,-500.0,0.0002,2]
[350064462,1737597055247,-500.0,0.0002,2]
[350064463,1737597055257,-500.0,0.0002,2]
[350064464,1737597055266,-500.0,0.0002,2]
[350064465,1737597055276,-500.0,0.0002,2]
[350064466,1737597055286,-477.79257661,0.0002,2]
[350064467,1737597055295,-500.0,0.0002,2]
[350064468,1737597055306,-516.64234186,0.0002,2]
[350064469,1737597055315,-500.0,0.0002,2]
[350064470,1737597055326,-500.0,0.0002,2]
[350064471,1737597055336,-500.0,0.0002,2]
[350064472,1737597055345,-517.56610013,0.0002,2]
[350064473,1737597055355,-500.0,0.0002,2]
[350064474,1737597055365,-505.23846111,0.0002,2]
[350064475,1737597055375,-495.22519336,0.0002,2]
[350064476,1737597055384,-500.0,0.0002,2]
[350064477,1737597055394,-500.0,0.0002,2]
[350064478,1737597055404,-525.02150924,0.0002,2]
[350064479,1737597055413,-500.0,0.0002,2]
[350064480,1737597055423,-500.0,0.0002,2]
[350064481,1737597055432,-500.0,0.0002,2]
[350064482,1737597055441,-549.235234,0.0002,2]
[350064483,1737597055450,-540.66698864,0.0002,2]
[350064484,1737597055460,-500.0,0.0002,2]
[350064485,1737597055470,-465.39548047,0.0002,2]
[350064486,1737597055479,-500.0,0.0002,2]
[350064487,1737597055492,-500.0,0.0002,2]
[350064488,1737597055502,-500.0,0.0002,2]
[350064489,1737597055512,-500.0,0.0002,2]
[350064490,1737597055521,-522.47,0.0002,2]
[350064491,1737597055530,-500.0,0.0002,2]
[350064492,1737597055540,-500.0,0.0002,2]
[350064493,1737597055550,-500.0,0.0002,2]
[350064494,1737597055559,-500.0,0.0002,2]
[350064495,1737597055569,-500.0,0.0002,2]
[350064496,1737597055581,-500.0,0.0002,2]
[350064497,1737597055591,-500.0,0.0002,2]
[350064498,1737597055602,-500.0,0.0002,2]
[350064499,1737597055611,-500.0,0.0002,2]
[350064500,1737597055621,-500.0,0.0002,2]
[350064501,1737597055631,-500.0,0.0002,2]
[350064502,1737597055644,-500.0,0.0002,2]
[350064503,1737597055654,-500.0,0.0002,2]
[350064504,1737597055663,-500.0,0.0002,2]
[350064505,1737597055673,-500.0,0.0002,2]
[350064506,1737597055683,-207.74572134,0.0002,2]
[350064507,1737597055695,-500.0,0.0002,2]
[350064508,1737597055705,-500.0,0.0002,2]
[350064509,1737597055716,-500.0,0.0002,2]
[350064510,1737597055726,-500.0,0.0002,2]
[350064511,1737597055738,-500.0,0.0002,2]
[350064512,1737597055748,-500.0,0.0002,2]
[350064513,1737597055757,-500.0,0.0002,2]
[350064514,1737597055766,-500.0,0.0002,2]
[350064515,1737597055776,-500.0,0.0002,2]
[350064516,1737597055785,-500.0,0.0002,2]
[350064517,1737597055795,-500.0,0.0002,2]
[350064518,1737597055805,-500.0,0.0002,2]
[350064519,1737597055815,-500.0,0.0002,2]
[350064520,1737597055824,-500.0,0.0002,2]
[350064521,1737597055834,-500.0,0.0002,2]
[350064522,1737597055843,-500.0,0.0002,2]
[350064523,1737597055853,-500.0,0.0002,2]
[350064524,1737597055863,-500.0,0.0002,2]
[350064525,1737597055872,-500.0,0.0002,2]
[350064526,1737597055882,-500.0,0.0002,2]
[350064527,1737597055892,-500.0,0.0002,2]
[350064528,1737597055903,-500.0,0.0002,2]
[350064529,1737597055914,-500.0,0.0002,2]
[350064530,1737597055924,-500.0,0.0002,2]
[350064531,1737597055936,-500.0,0.0002,2]
[350064532,1737597055947,-623.29,0.0002,2]
[350064533,1737597055957,-500.0,0.0002,2]
[350064534,1737597055967,-616.87,0.0002,2]
[350064535,1737597055978,-515.07873659,0.0002,2]
[350064536,1737597055989,-500.0,0.0002,2]
[350064537,1737597055998,-500.0,0.0002,2]
[350064538,1737597056008,-500.0,0.0002,2]
[350064539,1737597056017,-500.0,0.0002,2]
[350064540,1737597056027,-500.0,0.0002,2]
[350064541,1737597056036,-500.0,0.0002,2]
[350064542,1737597056046,-500.0,0.0002,2]
[350064543,1737597056055,-500.0,0.0002,2]
[350064544,1737597056064,-500.0,0.0002,2]
[350064545,1737597056073,-500.0,0.0002,2]
[350064546,1737597056083,-519.46566079,0.0002,2]
[350064547,1737597056093,-500.0,0.0002,2]
[350064548,1737597056102,-500.0,0.0002,2]
[350064549,1737597056111,-509.43,0.0002,2]
[350064550,1737597056120,-452.69393325,0.0002,2]
[350064551,1737597056130,-518.68439766,0.0002,2]
[350064552,1737597056140,-500.0,0.0002,2]
[350064553,1737597056154,-500.0,0.0002,2]
[350064554,1737597056165,-500.0,0.0002,2]
[350064555,1737597056174,-500.0,0.0002,2]
[350064556,1737597056184,-500.0,0.0002,2]
[350064557,1737597056195,-500.0,0.0002,2]
[350064558,1737597056203,-500.0,0.0002,2]
[350064559,1737597056213,-825.88,0.0002,2]
[350064560,1737597056222,-522.45789532,0.0002,2]
[350064561,1737597056232,-580.1,0.0002,2]
[350064562,1737597056242,-500.0,0.0002,2]
[350064563,1737597056252,-500.0,0.0002,2]
[350064564,1737597056261,-628.58,0.0002,2]
[350064565,1737597056270,-500.0,0.0002,2]
[350064566,1737597056279,-500.0,0.0002,2]
[350064567,1737597056289,-500.0,0.0002,2]
[350064568,1737597056298,-500.0,0.0002,2]
[350064569,1737597056307,-501.59,0.0002,2]
[350064570,1737597056316,-500.0,0.0002,2]
[350064571,1737597056328,-500.0,0.0002,2]
[350064572,1737597056337,-500.0,0.0002,2]
[350064573,1737597056347,-520.06,0.0002,2]
[350064574,1737597056356,-500.0,0.0002,2]
[350064575,1737597056366,-714.27,0.0002,2]
[350064576,1737597056376,-640.0,0.0002,2]
[350064577,1737597056385,-500.0,0.0002,2]
[350064578,1737597056395,-500.0,0.0002,2]
[350064579,1737597056404,-500.0,0.0002,2]
[350064580,1737597056413,-500.0,0.0002,2]
[350064581,1737597056422,-500.0,0.0002,2]
[350064582,1737597056431,-500.0,0.0002,2]
[350064583,1737597056440,-500.0,0.0002,2]
[350064584,1737597056450,-630.23,0.0002,2]
[350064585,1737597056459,-500.0,0.0002,2]
[350064586,1737597056469,-515.58931405,0.0002,2]
[350064587,1737597056478,-500.0,0.0002,2]
[350064588,1737597056489,-510.87856214,0.0002,2]
[350064589,1737597056499,-527.7,0.0002,2]
[350064590,1737597056509,-500.0,0.0002,2]
[350064591,1737597056518,-500.0,0.0002,2]
[350064592,1737597056529,-522.55,0.0002,2]
[350064593,1737597056538,-500.0,0.0002,2]
[350064594,1737597056547,-500.0,0.0002,2]
[350064595,1737597056557,-500.0,0.0002,2]
[350064596,1737597056566,-315.36255697,0.0002,2]
[350064597,1737597056575,-500.0,0.0002,2]
[350064598,1737597056584,-500.0,0.0002,2]
[350064599,1737597056593,-500.0,0.0002,2]
[350064600,1737597056602,-500.0,0.0002,2]
[350064601,1737597056611,-586.87167668,0.0002,2]
[350064602,1737597056621,-500.0,0.0002,2]
[350064603,1737597056630,-565.1,0.0002,2]
[350064604,1737597056639,-500.0,0.0002,2]
[350064605,1737597056649,-500.0,0.0002,2]
[350064606,1737597056660,-1056.51,0.0002,2]
[350064607,1737597056670,-500.0,0.0002,2]
[350064608,1737597056679,-500.0,0.0002,2]
[350064609,1737597056689,-500.0,0.0002,2]
[350064610,1737597056698,-627.26,0.0002,2]
[350064611,1737597056708,-500.0,0.0002,2]
[350064612,1737597056717,-500.0,0.0002,2]
[350064613,1737597056727,-500.0,0.0002,2]
[350064614,1737597056738,-1435.52,0.0002,2]
[350064615,1737597056751,-500.0,0.0002,2]
[350064616,1737597056764,-500.0,0.0002,2]
[350064617,1737597056775,-1381.09,0.0002,2]
[350064618,1737597056785,-500.0,0.0002,2]
[350064619,1737597056795,-500.0,0.0002,2]
[350064620,1737597056804,-873.98,0.0002,2]
[350064621,1737597056813,-588.66,0.0002,2]
[350064622,1737597056823,-500.0,0.0002,2]
[350064623,1737597056832,-804.46,0.0002,2]
[350064624,1737597056842,-500.0,0.0002,2]
[350064625,1737597056852,-676.63,0.0002,2]
[350064626,1737597056862,-518.86879661,0.0002,2]
[350064627,1737597056872,-525.513223,0.0002,2]
[350064628,1737597056882,-500.0,0.0002,2]
[350064629,1737597056891,-2865.77,0.0002,2]
[350064630,1737597056900,-500.0,0.0002,2]
[350064631,1737597056910,-500.0,0.0002,2]
[350064632,1737597056919,-459.08324222,0.0002,2]
[350064633,1737597056929,-725.79,0.0002,2]
[350064634,1737597056939,-2221.72,0.0002,2]
[350064635,1737597056948,-500.0,0.0002,2]
[350064636,1737597056957,-519.17,0.0002,2]
[350064637,1737597056967,-530.50072185,0.0002,2]
[350064638,1737597056977,-674.11,0.0002,2]
[350064639,1737597056991,-1211.94,0.0002,2]
[350064640,1737597057001,-500.0,0.0002,2]
[350064641,1737597057011,-710.8,0.0002,2]
[350064642,1737597057021,-500.0,0.0002,2]
[350064643,1737597057030,-853.14,0.0002,2]
[350064644,1737597057039,-500.0,0.0002,2]
[350064645,1737597057050,-712.48,0.0002,2]
[350064646,1737597057065,-1663.29,0.0002,2]
[350064647,1737597057074,-568.46,0.0002,2]
[350064648,1737597057083,-706.45,0.0002,2]
[350064649,1737597057093,-1244.86,0.0002,2]
[350064650,1737597057103,-757.37,0.0002,2]
[350064651,1737597057113,-516.71626997,0.0002,2]
[350064652,1737597057123,-1088.68,0.0002,2]
[350064653,1737597057132,-500.0,0.0002,2]
[350064654,1737597057141,-1574.13,0.0002,2]
[350064655,1737597057151,-1332.5,0.0002,2]
[350064656,1737597057161,-500.0,0.0002,2]
[350064657,1737597057173,-518.92093253,0.0002,2]
[350064658,1737597057182,-913.71,0.0002,2]
[350064659,1737597057193,-655.19,0.0002,2]
[350064660,1737597057203,-1162.79,0.0002,2]
[350064661,1737597057213,-500.0,0.0002,2]
[350064662,1737597057222,-500.0,0.0002,2]
[350064663,1737597057236,-500.0,0.0002,2]
[350064664,1737597057248,-500.0,0.0002,2]
[350064665,1737597057258,-1340.52,0.0002,2]
[350064666,1737597057268,-500.0,0.0002,2]
[350064667,1737597057278,-500.0,0.0002,2]
[350064668,1737597057288,-500.0,0.0002,2]
[350064669,1737597057297,-516.42734901,0.0002,2]
[350064670,1737597057307,-3289.67,0.0002,2]
[350064671,1737597057317,-500.0,0.0002,2]
[350064672,1737597057327,-1000.0,0.0002,2]
[350064673,1737597057336,-1716.49,0.0002,2]
[350064674,1737597057346,-500.0,0.0002,2]
[350064675,1737597057355,-879.82,0.0002,2]
[350064676,1737597057365,-500.0,0.0002,2]
[350064677,1737597057375,-1172.17,0.0002,2]
[350064678,1737597057385,-500.0,0.0002,2]
[350064679,1737597057395,-564.85743638,0.0002,2]
[350064680,1737597057404,-500.0,0.0002,2]
[350064681,1737597057414,-1711.63,0.0002,2]
[350064682,1737597057425,-2409.19,0.0002,2]
[350064683,1737597057434,-793.72,0.0002,2]
[350064684,1737597057444,-500.0,0.0002,2]
[350064685,1737597057454,-500.0,0.0002,2]
[350064686,1737597057463,-500.0,0.0002,2]
[350064687,1737597057473,-500.0,0.0002,2]
[350064688,1737597057486,-500.0,0.0002,2]
[350064689,1737597057496,-1896.45,0.0002,2]
[350064690,1737597057506,-1858.04,0.0002,2]
[350064691,1737597057516,-500.0,0.0002,2]
[350064692,1737597057526,-500.0,0.0002,2]
[350064693,1737597057536,-500.0,0.0002,2]
[350064694,1737597057545,-500.0,0.0002,2]
[350064695,1737597057555,-500.0,0.0002,2]
[350064696,1737597057565,-704.23,0.0002,2]
[350064697,1737597057574,-500.0,0.0002,2]
[350064698,1737597057585,-500.0,0.0002,2]
[350064699,1737597057595,-716.76,0.0002,2]
[350064700,1737597057605,-1050.66,0.0002,2]
[350064701,1737597057615,-1997.74,0.0002,2]
[350064702,1737597057624,-500.0,0.0002,2]
[350064703,1737597057635,-500.0,0.0002,2]
[350064704,1737597057646,-500.0,0.0002,2]
[350064705,1737597057655,-500.0,0.0002,2]
[350064706,1737597057666,-500.0,0.0002,2]
[350064707,1737597057675,-529.26,0.0002,2]
[350064708,1737597057686,-728.54,0.0002,2]
[350064709,1737597057695,-1405.82,0.0002,2]
[350064710,1737597057705,-500.0,0.0002,2]
[350064711,1737597057715,-500.0,0.0002,2]
[350064712,1737597057725,-500.0,0.0002,2]
[350064713,1737597057740,-500.0,0.0002,2]
[350064714,1737597057749,-515.69332037,0.0002,2]
[350064715,1737597057758,-500.0,0.0002,2]
[350064716,1737597057767,-1471.13,0.0002,2]
[350064717,1737597057776,-500.0,0.0002,2]
[350064718,1737597057785,-500.0,0.0002,2]
[350064719,1737597057794,-623.65033216,0.0002,2]
[350064720,1737597057803,-1836.27,0.0002,2]
[350064721,1737597057812,-841.66,0.0002,2]
[350064722,1737597057821,-512.9540702,0.0002,2]
[350064723,1737597057830,-500.0,0.0002,2]
[350064724,1737597057977,-500.0,0.0002,2]
[350064725,1737597057991,-856.13,0.0002,2]
[350064726,1737597058001,-1400.47,0.0002,2]
[350064727,1737597058010,-598.94,0.0002,2]
[350064728,1737597058019,-509.41891186,0.0002,2]
[350064729,1737597058028,-511.60100149,0.0002,2]
[350064730,1737597058037,-503.53,0.0002,2]
[350064731,1737597058046,-500.0,0.0002,2]
[350064732,1737597058055,-500.0,0.0002,2]
[350064733,1737597058065,-1061.16,0.0002,2]
[350064734,1737597058074,-500.0,0.0002,2]
[350064735,1737597058083,-806.2,0.0002,2]
[350064736,1737597058093,-500.0,0.0002,2]
[350064737,1737597058102,-511.43545472,0.0002,2]
[350064738,1737597058111,-508.61277293,0.0002,2]
[350064739,1737597058120,-953.85,0.0002,2]
[350064740,1737597058130,-631.59,0.0002,2]
[350064741,1737597058139,-500.0,0.0002,2]
[350064742,1737597058149,-500.0,0.0002,2]
[350064743,1737597058162,-500.0,0.0002,2]
[350064744,1737597058171,-500.0,0.0002,2]
[350064745,1737597058182,-510.53501086,0.0002,2]
[350064746,1737597058195,-605.19,0.0002,2]
[350064747,1737597058206,-500.0,0.0002,2]
[350064748,1737597058217,-509.18016791,0.0002,2]
[350064749,1737597058226,-500.0,0.0002,2]
[350064750,1737597058242,-612.54,0.0002,2]
[350064751,1737597058252,-547.64,0.0002,2]
[350064752,1737597058262,-515.66106063,0.0002,2]
[350064753,1737597058272,-500.0,0.0002,2]
[350064754,1737597058282,-500.0,0.0002,2]
[350064755,1737597058291,-589.93,0.0002,2]
[350064756,1737597058301,-500.0,0.0002,2]
[350064757,1737597058310,-500.0,0.0002,2]
[350064758,1737597058320,-500.0,0.0002,2]
[350064759,1737597058329,-500.0,0.0002,2]
[350064760,1737597058340,-1395.77,0.0002,2]
[350064761,1737597058351,-1548.41,0.0002,2]
[350064762,1737597058360,-500.0,0.0002,2]
[350064763,1737597058370,-645.68,0.0002,2]
[350064764,1737597058380,-500.0,0.0002,2]
[350064765,1737597058388,-522.86050382,0.0002,2]
[350064766,1737597058398,-734.11,0.0002,2]
[350064767,1737597058407,-640.19,0.0002,2]
[350064768,1737597058418,-913.91,0.0002,2]
[350064769,1737597058427,-496.37690042,0.0002,2]
[350064770,1737597058436,-500.0,0.0002,2]
[350064771,1737597058446,-507.63603905,0.0002,2]
[350064772,1737597058455,-665.46,0.0002,2]
[350064773,1737597058464,-500.0,0.0002,2]
[350064774,1737597058473,-500.0,0.0002,2]
[350064775,1737597058488,-1033.15,0.0002,2]
[350064776,1737597058499,-500.0,0.0002,2]
[350064777,1737597058509,-500.0,0.0002,2]
[350064778,1737597058519,-500.0,0.0002,2]
[350064779,1737597058528,-547.85,0.0002,2]
[350064780,1737597058538,-500.0,0.0002,2]
[350064781,1737597058547,-500.0,0.0002,2]
[350064782,1737597058556,-1043.11,0.0002,2]
[350064783,1737597058566,-500.0,0.0002,2]
[350064784,1737597058575,-500.0,0.0002,2]
[350064785,1737597058584,-500.0,0.0002,2]
[350064786,1737597058593,-500.0,0.0002,2]
[350064787,1737597058605,-500.0,0.0002,2]
[350064788,1737597058615,-556.01,0.0002,2]
[350064789,1737597058626,-500.0,0.0002,2]
[350064790,1737597058635,-991.21,0.0002,2]
[350064791,1737597058645,-586.46,0.0002,2]
[350064792,1737597058655,-1995.0,0.0002,2]
[350064793,1737597058664,-2266.43,0.0002,2]
[350064794,1737597058673,-500.0,0.0002,2]
[350064795,1737597058683,-500.0,0.0002,2]
[350064796,1737597058692,-500.0,0.0002,2]
[350064797,1737597058703,-643.66738116,0.0002,2]
[350064798,1737597058712,-500.0,0.0002,2]
[350064799,1737597058721,-218.91408797,0.0002,2]
[350064800,1737597058731,-564.67,0.0002,2]
[350064801,1737597058744,-500.0,0.0002,2]
[350064802,1737597058754,-1676.87,0.0002,2]
[350064803,1737597058763,-500.0,0.0002,2]
[350064804,1737597058772,-3898.98,0.0002,2]
[350064805,1737597058781,-500.0,0.0002,2]
[350064806,1737597058790,-500.0,0.0002,2]
[350064807,1737597058799,-661.08,0.0002,2]
[350064808,1737597058809,-509.81407303,0.0002,2]
[350064809,1737597058818,-500.0,0.0002,2]
[350064810,1737597058827,-500.0,0.0002,2]
[350064811,1737597058837,-500.0,0.0002,2]
[350064812,1737597058847,-500.0,0.0002,2]
[350064813,1737597058856,-836.81,0.0002,2]
[350064814,1737597058866,-500.0,0.0002,2]
[350064815,1737597058877,-500.0,0.0002,2]
[350064816,1737597058887,-821.27,0.0002,2]
[350064817,1737597058898,-500.0,0.0002,2]
[350064818,1737597058910,-500.0,0.0002,2]
[350064819,1737597058919,-1502.53,0.0002,2]
[350064820,1737597058928,-588.34179028,0.0002,2]
[350064821,1737597058937,-352.06235706,0.00020038,2]
[350064822,1737597058946,-186.39,0.00020088,2]
[350064823,1737597058955,-594.88,0.00020089,2]
[350064824,1737597058964,-500.0,0.00020097,2]
[350064825,1737597058973,-238.14252457,0.00020097,2]
[350064826,1737597058984,-400.93612265,0.00020097,2]
[350064827,1737597058993,-501.05452314,0.00020097,2]
[350064828,1737597059003,-231.5,0.00020129,2]
[350064829,1737597059012,-2639.74140238,0.00020173,2]
[350064830,1737597059021,-352.06235706,0.00020245,2]
[350064831,1737597059030,-500.0,0.00020272,2]
[350064832,1737597059042,-251.256397,0.00020273,2]
[350064833,1737597059051,-336.867004,0.00020273,2]
[350064834,1737597059061,-511.67888005,0.00020273,2]
[350064835,1737597059071,-500.0,0.00020273,2]
[350064836,1737597059082,-500.0,0.00020273,2]
[350064837,1737597059092,-500.0,0.00020273,2]
[350064838,1737597059102,-500.0,0.00020273,2]
[350064839,1737597059111,-500.0,0.00020273,2]
[350064840,1737597059121,-565.2,0.00020273,2]
[350064841,1737597059131,-500.0,0.00020273,2]
[350064842,1737597059140,-500.0,0.00020273,2]
[350064843,1737597059151,-500.0,0.00020273,2]
[350064844,1737597059160,-469.44773285,0.00020273,2]